bitfinex-derivatives/quotes_ETHF0:USTF0_20250911
["timestamp","ask_amount","ask_price","bid_price","bid_amount"]
[1757570259807,0.4204,4422.2,4422.1,2.21072117]
[1757570260009,0.4204,4422.2,4422.1,0.198]
[1757570260010,0.7266,4422.2,4422.1,0.198]
[1757570260507,0.3062,4422.1,4422.0,2.24072117]
[1757570260707,0.7266,4422.1,4422.0,2.24072117]
[1757570260902,0.7266,4422.1,4422.0,2.75882117]
[1757570261111,0.7266,4422.1,4422.0,0.9483]
[1757570263911,0.7266,4422.1,4422.0,0.7203]
[1757570266411,0.7266,4422.1,4422.0,0.4002]
[1757570267319,0.7266,4421.9,4421.8,0.228]
[1757570267514,0.7266,4421.9,4421.8,0.9483]
[1757570270904,0.7266,4421.9,4421.8,0.6282]
[1757570271311,0.7266,4421.9,4421.8,0.9483]
[1757570272628,0.7266,4421.9,4421.8,0.4002]
[1757570273816,0.3062,4421.8,4421.6,0.228]
[1757570274117,0.7266,4421.3,4421.2,2.21072117]
[1757570274318,0.7266,4421.3,4421.2,0.7203]
[1757570276113,0.7266,4421.3,4421.2,0.4002]
[1757570276312,0.7266,4421.3,4421.2,0.198]
[1757570276609,0.8442,4421.0,4420.9,0.198]
[1757570276817,0.8442,4421.0,4420.9,0.228]
[1757570277327,0.8442,4421.0,4420.9,0.4373]
[1757570280114,0.8442,4421.0,4420.9,0.6357]
[1757570280314,0.3062,4421.0,4420.9,0.9509]
[1757570280515,0.5003,4421.0,4420.9,0.9509]
[1757570281327,0.8332,4421.0,4420.9,0.4373]
[1757570281520,0.8332,4421.0,4420.9,0.2093]
[1757570281919,0.8332,4421.0,4420.6,0.5432]
[1757570282116,0.3011,4420.9,4420.8,0.2093]
[1757570282320,0.702,4420.9,4420.8,0.2093]
[1757570282719,0.702,4420.9,4420.8,0.7229]
[1757570285322,0.1176,4421.5,4420.9,0.3152]
[1757570285522,0.702,4421.4,4421.3,0.7229]
[1757570286025,0.702,4421.4,4421.3,0.4077]
[1757570287221,0.1176,4422.0,4421.3,0.4077]
[1757570287425,0.702,4421.9,4421.8,0.4077]
[1757570287623,0.702,4421.9,4421.8,0.7229]
[1757570288024,0.702,4421.3,4421.2,0.2093]
[1757570288419,0.702,4421.3,4421.2,0.7229]
[1757570289624,0.4009,4420.9,4420.8,0.4373]
[1757570289830,0.702,4420.9,4420.8,0.9509]
[1757570290017,0.702,4420.9,4420.8,26.81063832]
[1757570290018,0.4952,4420.9,4420.8,26.81063832]
[1757570291327,0.702,4420.9,4420.8,2.11063832]
[1757570292331,0.702,4420.9,4420.8,0.9509]
[1757570293928,0.702,4420.9,4420.8,0.7229]
[1757570294226,0.702,4420.9,4420.8,0.4077]
[1757570295128,0.702,4420.9,4420.8,0.7229]
[1757570307240,0.702,4420.9,4420.8,0.4077]
[1757570310442,0.702,4420.9,4420.8,0.7047]
[1757570311244,0.702,4420.9,4420.8,0.2093]
[1757570311444,0.4225,4420.3,4420.2,2.22502117]
[1757570311650,0.7389,4420.3,4420.2,2.96532117]
[1757570311943,0.7389,4420.3,4420.2,2.22502117]
[1757570312137,0.7389,4420.3,4420.2,2.01272117]
[1757570312337,0.3164,4420.2,4420.1,0.2123]
[1757570312647,0.7389,4420.2,4420.1,0.2123]
[1757570317342,0.7389,4420.2,4420.1,0.5093]
[1757570320747,0.7389,4420.2,4420.1,0.7246]
[1757570327850,0.3164,4420.9,4420.1,0.4276]
[1757570328151,0.3164,4420.9,4420.0,0.3471]
[1757570328152,0.7389,4420.9,4420.8,0.2123]
[1757570331455,0.7389,4420.9,4420.8,0.5093]
[1757570331853,0.7389,4420.9,4420.8,0.2123]
[1757570335656,0.3164,4420.8,4419.9,2.41985117]
[1757570335860,0.1261,4421.0,4420.3,1.19258253]
[1757570335861,0.7389,4420.4,4420.3,1.19258253]
[1757570336160,0.7389,4420.4,4420.3,1.70488253]
[1757570338756,0.4225,4420.4,4419.9,2.9930037]
[1757570338959,0.4055,4420.0,4419.9,3.6269437]
[1757570339158,0.714,4420.0,4419.9,3.6269437]
[1757570339558,0.714,4420.0,4419.9,3.9366437]
[1757570339756,0.714,4420.0,4419.9,3.7104037]
[1757570340163,0.714,4420.0,4419.9,2.73012117]
[1757570340364,0.714,4420.0,4419.9,3.9384037]
[1757570340760,0.3085,4420.4,4420.0,0.3097]
[1757570340967,0.3085,4420.5,4420.4,0.7174]
[1757570341160,0.5199,4420.5,4420.4,1.69768253]
[1757570346870,0.646,4421.0,4420.9,0.7174]
[1757570347375,0.8401,4421.0,4420.9,0.7174]
[1757570356884,0.8401,4421.0,4420.9,0.4077]
[1757570357080,0.8401,4421.0,4420.9,0.2127]
[1757570357985,0.8401,4421.0,4420.6,1.28998253]
[1757570358174,0.3085,4420.9,4420.6,1.28998253]
[1757570358374,0.4055,4420.7,4420.6,1.69768253]
[1757570358578,0.714,4420.7,4420.6,1.69768253]
[1757570362790,0.3085,4421.4,4421.3,0.4077]
[1757570363089,0.5199,4421.4,4421.3,0.7174]
[1757570363389,0.714,4421.4,4421.3,0.7174]
[1757570363776,0.714,4421.4,4421.3,0.4077]
[1757570363981,0.714,4421.4,4421.3,0.2127]
[1757570364381,0.714,4421.4,4421.3,0.7174]
[1757570377295,0.714,4421.4,4421.3,0.4077]
[1757570380193,0.2986,4421.3,4420.8,25.0078]
[1757570380502,0.829,4421.0,4420.9,0.2016]
[1757570381701,0.829,4421.0,4420.9,0.5094]
[1757570381901,0.829,4421.0,4420.9,0.2016]
[1757570385203,0.829,4421.0,4420.6,0.3078]
[1757570385404,0.2986,4420.9,4420.5,2.01272117]
[1757570385606,0.4027,4420.7,4420.6,0.7144]
[1757570385800,0.7013,4420.7,4420.6,0.7144]
[1757570395914,0.7013,4420.7,4420.6,0.4066]
[1757570396917,0.4027,4420.7,4420.5,2.01272117]
[1757570397121,0.7092,4420.6,4420.5,0.228]
[1757570397420,0.7092,4420.6,4420.5,0.4322]
[1757570400722,0.7174,4420.3,4420.2,0.4322]
[1757570401925,0.7174,4420.3,4420.2,0.9508]
[1757570403327,0.5082,4420.9,4420.8,0.4087]
[1757570403522,0.5082,4420.9,4420.8,0.7228]
[1757570403721,0.7174,4420.9,4420.8,0.7228]
[1757570405023,0.3068,4421.4,4420.9,0.3141]
[1757570405225,0.5082,4421.0,4420.9,25.4228]
[1757570405420,0.8341,4421.0,4420.9,0.7228]
[1757570405726,0.7174,4420.8,4420.7,0.2042]
[1757570405926,0.1167,4420.0,4419.9,2.01272117]
[1757570406118,0.8341,4420.0,4419.8,2.82763383]
[1757570406323,0.3068,4419.9,4419.5,2.01272117]
[1757570406623,0.7174,4419.4,4419.3,0.9508]
[1757570407328,0.7174,4419.4,4419.3,0.7228]
[1757570407723,0.7174,4419.4,4419.3,0.2042]
[1757570408026,0.7174,4419.4,4419.3,0.7228]
[1757570408735,0.1167,4420.0,4419.2,0.228]
[1757570408736,0.8341,4420.0,4419.9,0.2042]
[1757570409934,0.8341,4420.0,4419.2,0.228]
[1757570410230,0.8341,4420.0,4419.3,0.3141]
[1757570411026,0.1167,4419.5,4419.4,0.2042]
[1757570411227,0.5273,4419.5,4419.4,0.2042]
[1757570411738,0.4106,4419.2,4419.1,0.228]
[1757570411930,0.7174,4419.2,4419.1,0.228]
[1757570412236,0.7174,4419.2,4419.1,0.4322]
[1757570412434,0.7174,4419.2,4419.1,0.9508]
[1757570412630,0.7174,4419.9,4419.8,0.5186]
[1757570412938,0.7174,4419.9,4419.8,0.7228]
[1757570413236,0.7174,4419.9,4419.8,0.4087]
[1757570413733,0.7174,4419.9,4419.2,0.228]
[1757570414337,0.3068,4419.8,4419.3,25.0141]
[1757570414633,0.2014,4419.4,4419.3,25.1087]
[1757570414832,0.5082,4419.4,4419.3,25.1087]
[1757570415436,0.5082,4419.4,4419.3,25.4228]
[1757570417738,0.7174,4419.4,4419.3,0.4087]
[1757570417935,0.7174,4419.4,4419.3,0.6367]
[1757570418238,0.7174,4419.4,4419.3,0.4087]
[1757570419429,0.7174,4419.4,4419.3,0.2042]
[1757570419633,0.7174,4419.4,4419.3,0.7228]
[1757570421536,0.3068,4419.4,4419.3,0.7228]
[1757570421739,0.5273,4420.0,4419.9,0.2042]
[1757570421943,0.75357001,4420.0,4419.9,0.2042]
[1757570422240,0.75357001,4420.0,4419.7,0.3141]
[1757570422437,0.4106,4419.8,4419.7,0.2042]
[1757570422642,0.7174,4419.8,4419.7,0.2042]
[1757570422835,0.3068,4419.7,4419.2,0.3141]
[1757570423140,0.7174,4419.3,4419.2,0.7228]
[1757570423843,0.7174,4419.3,4419.2,0.4087]
[1757570424344,0.7174,4419.3,4419.2,0.7228]
[1757570426848,0.7174,4419.3,4419.2,0.2042]
[1757570427448,0.7174,4419.3,4419.2,0.7128]
[1757570432552,0.7174,4419.3,4419.2,0.2042]
[1757570434445,0.7174,4419.3,4419.2,0.5026]
[1757570434751,0.7174,4419.3,4419.2,0.7128]
[1757570436555,0.7174,4419.3,4419.2,1.69381828]
[1757570439251,0.7174,4419.3,4419.2,0.7128]
[1757570439449,0.7174,4419.3,4418.9,2.01272117]
[1757570439450,0.8376,4419.0,4418.9,2.01272117]
[1757570439648,0.8376,4419.0,4418.9,0.2075]
[1757570441350,0.8376,4419.0,4418.7,2.24072117]
[1757570441556,0.4073,4418.8,4418.7,2.24072117]
[1757570441750,0.711,4418.8,4418.7,2.24072117]
[1757570442356,0.711,4418.8,4418.7,0.228]
[1757570442556,0.711,4418.8,4418.7,2.44822117]
[1757570442757,0.711,4418.8,4418.7,2.22022117]
[1757570442959,0.4073,4418.8,4418.5,2.01272117]
[1757570443154,1.38831828,4418.6,4418.2,3.05563383]
[1757570443351,0.711,4418.3,4418.2,0.4355]
[1757570445049,0.711,4418.3,4418.2,0.2075]
[1757570445354,0.711,4418.3,4418.0,24.7]
[1757570445355,0.4073,4418.3,4418.0,24.928]
[1757570445560,0.711,4418.1,4418.0,25.1355]
[1757570446148,0.711,4418.1,4418.0,0.4355]
[1757570446760,0.711,4418.1,4418.0,0.9441]
[1757570447353,0.1266,4419.0,4418.3,0.4177]
[1757570447560,0.711,4418.9,4418.8,0.7161]
[1757570447958,0.711,4418.9,4418.8,0.4177]
[1757570449753,0.711,4418.9,4418.8,0.69470452]
[1757570449953,0.711,4418.9,4418.8,0.27700452]
[1757570460084,1.69201828,4418.9,4418.8,0.27700452]
[1757570465682,0.4206,4417.8,4417.7,0.202]
[1757570465890,0.7302,4417.8,4417.7,0.202]
[1757570466985,0.8536,4417.5,4417.4,0.5004]
[1757570467190,0.8536,4417.5,4417.4,0.202]
[1757570469291,0.8536,4417.5,4416.9,0.228]
[1757570469292,0.544,4417.5,4416.9,0.2984]
[1757570469588,0.7302,4417.4,4417.3,0.202]
[1757570469987,0.7302,4417.4,4417.3,0.6986]
[1757570472790,0.7302,4417.4,4417.3,0.4002]
[1757570473293,0.7302,4417.4,4417.3,0.202]
[1757570475294,0.7302,4417.4,4416.7,0.98101828]
[1757570475497,0.4206,4416.8,4416.7,0.6986]
[1757570475696,0.7302,4416.8,4416.7,0.6986]
[1757570476291,0.7302,4416.8,4416.7,0.202]
[1757570476794,0.3096,4416.7,4416.2,0.2984]
[1757570477101,0.5221,4416.3,4416.2,0.6986]
[1757570477694,0.7302,4416.3,4416.2,0.6986]
[1757570479301,0.3096,4416.9,4416.3,0.2984]
[1757570479495,0.5221,4417.4,4417.3,0.202]
[1757570479695,0.7302,4417.4,4417.3,0.202]
[1757570481593,0.7302,4417.4,4417.3,0.6986]
[1757570482799,0.3096,4417.9,4417.4,0.2984]
[1757570483012,0.98101828,4418.6,4417.8,0.6986]
[1757570483301,0.3474,4419.0,4417.5,0.1173]
[1757570483302,0.544,4418.5,4418.4,0.202]
[1757570483806,1.83461828,4418.5,4418.4,0.202]
[1757570485402,1.83461828,4418.5,4417.7,25.68101828]
[1757570485403,0.3096,4418.4,4417.8,0.2984]
[1757570485597,0.2125,4417.9,4417.8,0.6986]
[1757570485805,0.5221,4417.9,4417.8,0.6986]
[1757570486001,0.7302,4417.9,4417.8,0.6986]
[1757570486896,1.40161828,4417.9,4417.7,24.7]
[1757570487100,0.7302,4417.1,4417.0,0.6986]
[1757570499109,0.7302,4417.1,4417.0,0.4002]
[1757570499908,0.7121,4416.7,4416.6,2.20852117]
[1757570500112,0.8324,4416.5,4416.4,0.726]
[1757570501607,0.8324,4416.5,4416.4,0.4238]
[1757570502010,0.8324,4416.5,4416.4,0.726]
[1757570502515,0.8324,4416.5,4416.4,0.4238]
[1757570503920,0.5007,4416.5,4416.4,0.92]
[1757570504515,0.2965,4416.5,4416.4,0.92]
[1757570504713,0.2965,4416.9,4416.8,0.3898]
[1757570505019,0.2965,4417.4,4416.9,0.3022]
[1757570505209,0.7121,4417.4,4417.3,0.1958]
[1757570508213,0.7121,4417.4,4416.5,0.1173]
[1757570508414,0.7121,4417.4,4416.6,0.3022]
[1757570513716,0.7121,4416.7,4416.6,0.692]
[1757570518631,0.7121,4416.7,4416.6,0.1958]
[1757570518830,0.8231,4416.5,4416.4,2.52762117]
[1757570519130,0.8231,4416.5,4416.4,2.72482117]
[1757570519818,0.8231,4416.5,4416.4,0.7121]
[1757570520019,0.8231,4416.5,4416.4,0.4004]
[1757570520221,0.8231,4416.5,4416.4,0.7121]
[1757570523934,0.8231,4416.5,4416.4,0.4004]
[1757570524725,0.2982,4416.4,4416.3,2.01272117]
[1757570524932,0.7008,4416.3,4416.2,2.01272117]
[1757570525227,0.7008,4415.9,4415.8,2.21592117]
[1757570525627,0.7008,4415.9,4415.8,0.228]
[1757570525827,0.2982,4415.8,4415.7,2.01272117]
[1757570526023,0.5249,4415.5,4415.4,2.24072117]
[1757570526229,0.5249,4415.5,4415.3,2.01272117]
[1757570526430,0.7008,4415.4,4415.3,2.21592117]
[1757570526629,0.7008,4415.4,4415.3,2.24072117]
[1757570526826,0.7008,4415.4,4415.3,2.44392117]
[1757570527238,0.7008,4415.4,4415.3,0.4312]
[1757570528438,0.7008,4415.4,4415.3,0.7429]
[1757570529637,0.7008,4415.4,4415.3,0.4312]
[1757570530137,0.1223,4415.5,4415.1,0.3117]
[1757570530138,0.2982,4415.3,4415.1,0.3117]
[1757570530338,0.1223,4415.5,4415.1,0.7121]
[1757570530339,0.7008,4415.2,4415.1,0.7121]
[1757570540144,0.7008,4414.6,4414.5,25.1312]
[1757570540345,0.7008,4414.6,4414.5,25.4429]
[1757570540643,0.7008,4414.6,4414.5,25.6401]
[1757570541451,0.7008,4414.2,4414.1,0.7429]
[1757570541943,0.7008,4414.2,4414.1,25.4121]
[1757570543148,0.7008,4414.2,4414.1,25.1004]
[1757570543446,0.7008,4414.2,4414.1,24.9032]
[1757570543651,0.7008,4414.2,4414.1,25.4121]
[1757570544045,0.7008,4414.2,4414.1,0.7121]
[1757570544643,0.1223,4414.0,4413.9,0.2032]
[1757570544950,0.5249,4414.0,4413.9,0.2032]
[1757570545150,0.5249,4414.0,4413.2,0.3117]
[1757570545343,0.7008,4413.7,4413.6,0.4312]
[1757570545546,0.2982,4413.7,4413.6,0.9401]
[1757570545745,0.4944,4413.9,4413.8,0.7121]
[1757570546342,0.7008,4413.9,4413.8,0.7121]
[1757570551554,0.7008,4413.9,4413.8,0.4004]
[1757570552658,0.3193,4413.8,4413.6,24.928]
[1757570552856,0.4224,4413.7,4413.6,25.1418]
[1757570553057,0.7417,4413.7,4413.6,25.1418]
[1757570553557,0.7417,4413.7,4413.6,25.4358]
[1757570553760,1.72525557,4413.7,4413.6,25.4358]
[1757570554148,1.72525557,4413.7,4413.6,0.2138]
[1757570554550,0.1235,4413.5,4413.4,0.2138]
[1757570554753,0.8652,4413.5,4413.4,24.9138]
[1757570555454,0.8652,4413.5,4413.4,0.2138]
[1757570556660,0.8652,4413.5,4413.3,0.228]
[1757570556959,1.72525557,4413.4,4413.3,0.228]
[1757570557458,0.7417,4412.9,4412.8,0.8746243]
[1757570557659,1.72525557,4412.9,4412.8,0.8746243]
[1757570558158,0.7417,4412.9,4412.8,0.8746243]
[1757570559859,0.7417,4412.9,4412.8,0.1722243]
[1757570561458,0.7417,4412.9,4412.8,0.5806243]
[1757570561662,0.7417,4412.9,4412.8,0.8746243]
[1757570564156,0.7417,4412.9,4412.8,0.5806243]
[1757570564555,0.7417,4412.9,4412.8,0.8746243]
[1757570564963,0.7417,4412.9,4412.8,0.1722243]
[1757570565362,1.72525557,4412.9,4412.8,0.1722243]
[1757570572466,0.7417,4412.9,4412.8,0.8746243]
[1757570573266,0.3193,4412.9,4412.8,0.8746243]
[1757570573669,1.84875557,4413.5,4413.4,0.7024]
[1757570574967,1.84875557,4413.5,4413.4,0.4084]
[1757570575858,0.8652,4413.5,4413.4,0.4084]
[1757570576060,0.8652,4413.5,4413.4,0.7024]
[1757570576260,0.7417,4413.5,4413.4,0.7024]
[1757570578958,0.868,4413.5,4413.4,0.7024]
[1757570579868,0.868,4413.5,4413.4,0.4084]
[1757570580070,0.868,4413.5,4413.4,0.7116]
[1757570580773,0.1223,4414.0,4413.8,0.393]
[1757570580976,0.507,4413.9,4413.8,0.393]
[1757570581268,0.2233,4414.5,4413.1,0.22658]
[1757570581269,0.702,4413.2,4413.1,3.07733265]
[1757570581472,0.4032,4412.9,4412.8,0.1722243]
[1757570581670,0.702,4412.9,4412.8,0.1722243]
[1757570582075,0.702,4412.9,4412.8,0.3679243]
[1757570582863,0.702,4412.9,4412.8,0.1722243]
[1757570583062,0.702,4412.9,4412.8,0.3679243]
[1757570583368,0.702,4412.9,4412.8,0.1722243]
[1757570583369,1.68555557,4412.9,4412.8,0.1722243]
[1757570585170,0.702,4412.9,4412.8,0.3679243]
[1757570587169,0.702,4412.9,4412.8,0.1722243]
[1757570589176,0.702,4412.9,4412.8,0.8684243]
[1757570591084,0.702,4412.9,4412.8,0.3679243]
[1757570591478,0.702,4412.9,4412.8,0.1722243]
[1757570593883,4.702,4412.9,4412.8,0.1722243]
[1757570596180,4.702,4412.9,4411.7,2.01272117]
[1757570596181,0.4032,4411.8,4411.7,2.20842117]
[1757570596484,0.702,4411.8,4411.7,0.6962]
[1757570599200,0.702,4411.8,4411.7,25.3962]
[1757570599592,1.38675557,4411.8,4411.2,2.01272117]
[1757570599785,1.38675557,4411.8,4411.1,0.3032]
[1757570599786,0.4032,4411.8,4411.7,0.6962]
[1757570600295,0.702,4411.8,4411.7,0.6962]
[1757570601889,0.702,4411.8,4411.7,0.393]
[1757570603788,0.702,4411.8,4411.7,0.6962]
[1757570603989,0.1263,4412.5,4411.8,0.3032]
[1757570604190,0.5295,4412.5,4412.4,0.1957]
[1757570604798,0.8283,4412.5,4412.4,0.1957]
[1757570605802,0.5295,4412.5,4411.6,0.3032]
[1757570606000,0.702,4412.4,4412.3,0.1957]
[1757570607999,0.702,4412.4,4412.1,0.3032]
[1757570610503,0.702,4412.4,4412.3,0.2048]
[1757570611004,0.702,4412.4,4411.6,0.3186]
[1757570611202,0.3058,4412.2,4411.6,0.3186]
[1757570612101,0.7145,4412.2,4412.1,0.2048]
[1757570613005,0.7145,4412.2,4412.1,0.5234]
[1757570613302,0.7145,4412.2,4412.1,0.7299]
[1757570615703,0.5004,4412.2,4412.1,0.7299]
[1757570616907,0.7145,4412.2,4412.1,0.7299]
[1757570619808,0.3058,4412.2,4412.1,0.7299]
[1757570620704,0.1263,4413.0,4412.1,0.7299]
[1757570620705,0.3209,4413.0,4412.9,0.7299]
[1757570620908,0.1946,4413.0,4412.9,0.7299]
[1757570621108,0.5004,4413.0,4412.9,0.7299]
[1757570621906,0.3209,4413.5,4413.4,0.4113]
[1757570622103,0.6267,4413.5,4413.4,0.7299]
[1757570622309,0.5004,4413.5,4413.4,0.7299]
[1757570623002,1.16559246,4414.8,4413.8,0.7299]
[1757570623206,0.4087,4414.4,4414.3,0.4113]
[1757570623502,0.7145,4414.4,4414.3,0.7299]
[1757570624708,0.5004,4414.4,4414.3,0.7299]
[1757570625714,0.7145,4414.4,4414.3,0.7299]
[1757570626814,0.7145,4414.4,4413.6,0.3186]
[1757570627510,0.1946,4413.9,4413.8,0.7299]
[1757570627709,0.5004,4413.9,4413.8,0.7299]
[1757570639323,0.7145,4413.9,4413.8,0.7299]
[1757570640324,0.7145,4413.9,4413.8,0.9579]
[1757570641629,0.5004,4413.9,4413.8,0.9579]
[1757570643126,0.7133,4413.9,4413.8,0.9579]
[1757570645818,0.7133,4413.9,4413.1,0.303]
[1757570646024,0.7297,4413.3,4413.2,0.2022]
[1757570646224,0.7297,4413.3,4413.2,0.4302]
[1757570646423,0.7297,4413.3,4413.2,0.7332]
[1757570646621,0.7297,4413.3,4413.2,0.9425]
[1757570648628,0.7297,4413.3,4413.2,0.228]
[1757570650125,0.7297,4413.3,4412.9,0.303]
[1757570650329,0.7297,4413.3,4413.1,0.228]
[1757570650528,0.3127,4412.6,4412.5,2.03221587]
[1757570650829,0.8512,4412.5,4412.3,0.228]
[1757570651029,0.8512,4412.5,4412.2,0.228]
[1757570651725,0.8512,4412.5,4411.6,2.91493363]
[1757570651726,0.1215,4412.0,4411.8,2.03221587]
[1757570652028,0.3127,4412.4,4412.1,0.303]
[1757570652230,0.5168,4412.4,4412.3,0.7145]
[1757570653228,0.3127,4412.9,4412.3,0.6395]
[1757570653430,0.8512,4413.0,4412.9,0.2022]
[1757570654031,0.8512,4413.0,4412.9,0.7145]
[1757570654419,0.7297,4413.0,4412.9,0.7145]
[1757570654618,0.3127,4413.4,4412.9,0.4115]
[1757570654823,0.3127,4413.4,4412.9,0.228]
[1757570655026,0.3127,4413.4,4413.3,0.2022]
[1757570655027,0.7297,4413.4,4413.3,0.2022]
[1757570657729,0.7297,4413.4,4413.0,0.303]
[1757570658033,0.7297,4413.4,4413.3,0.2022]
[1757570662538,0.7297,4413.4,4413.0,0.303]
[1757570662737,0.8512,4413.0,4412.9,0.4302]
[1757570662939,0.8512,4413.0,4412.9,0.2022]
[1757570663131,0.8512,4413.0,4412.2,2.03221587]
[1757570663334,0.7297,4412.4,4412.3,0.9425]
[1757570666641,0.5168,4412.9,4412.8,0.4115]
[1757570666832,0.1215,4413.5,4412.8,0.7145]
[1757570667045,0.8512,4413.5,4413.4,0.2022]
[1757570667333,0.3129,4413.4,4413.2,24.7]
[1757570667534,0.1173,4413.0,4411.9,0.40787]
[1757570667736,0.715,4412.6,4412.5,0.4405]
[1757570667931,0.715,4412.6,4412.5,25.1405]
[1757570668336,0.715,4412.6,4412.5,25.6504]
[1757570670735,0.715,4412.6,4412.5,25.3488]
[1757570671145,0.715,4412.6,4412.5,25.6504]
[1757570673138,0.715,4412.6,4412.1,2.03221587]
[1757570673139,0.4021,4412.2,4412.1,2.33381587]
[1757570673437,0.4021,4412.2,4412.1,0.9504]
[1757570673438,0.715,4412.2,4412.1,0.9504]
[1757570673631,0.715,4412.2,4412.1,25.6504]
[1757570676443,0.5108,4412.2,4412.1,25.6504]
[1757570677639,0.1173,4412.5,4412.1,25.6504]
[1757570677841,0.3129,4412.4,4412.3,0.4198]
[1757570678142,0.5108,4412.4,4412.3,0.7214]
[1757570678639,0.1215,4413.5,4412.9,0.3016]
[1757570678841,0.715,4413.4,4413.3,0.7214]
[1757570679034,0.715,4413.4,4413.3,0.4198]
[1757570681647,0.715,4413.4,4413.3,0.2115]
[1757570687849,0.3129,4413.3,4413.0,0.3016]
[1757570688057,0.4021,4413.1,4413.0,0.4198]
[1757570688246,0.715,4413.1,4413.0,0.7214]
[1757570689251,0.715,4413.1,4413.0,0.4198]
[1757570690152,0.715,4413.1,4413.0,0.2115]
[1757570690350,0.8323,4412.5,4412.4,0.2115]
[1757570690753,0.8323,4412.5,4412.2,2.03221587]
[1757570690955,0.4021,4412.2,4412.1,2.24371587]
[1757570691161,0.715,4412.2,4412.1,0.2115]
[1757570692251,0.715,4412.2,4412.0,2.03221587]
[1757570692252,0.3129,4412.1,4412.0,2.03221587]
[1757570692468,0.715,4412.1,4412.0,0.2115]
[1757570692654,0.715,4412.1,4412.0,0.7214]
[1757570695565,0.715,4412.1,4412.0,0.4198]
[1757570696063,0.715,4412.1,4412.0,0.7214]
[1757570696359,0.715,4412.1,4412.0,0.4198]
[1757570697961,0.715,4412.1,4412.0,0.2115]
[1757570698162,0.8231,4412.0,4411.9,1.19871457]
[1757570698465,0.8231,4412.0,4411.7,0.229]
[1757570698665,0.8231,4412.0,4411.6,3.01633044]
[1757570698666,0.5159,4412.0,4411.6,0.98411457]
[1757570698867,0.7051,4411.7,4411.6,1.19871457]
[1757570700264,0.118,4412.0,4411.6,1.19871457]
[1757570700265,0.3072,4412.0,4411.6,1.40181457]
[1757570700464,0.5043,4412.0,4411.9,1.72431457]
[1757570700665,0.8231,4412.0,4411.9,0.7402]
[1757570700865,0.8231,4412.0,4411.9,1.72431457]
[1757570701065,0.8231,4412.0,4411.9,1.40181457]
[1757570701770,0.8231,4412.0,4411.6,1.30661457]
[1757570701771,0.3072,4411.9,4411.6,1.30661457]
[1757570702069,0.7051,4411.7,4411.6,1.72431457]
[1757570704377,0.3072,4411.7,4411.6,1.72431457]
[1757570704672,0.3072,4411.9,4411.8,0.4177]
[1757570704867,0.3072,4411.9,4411.8,0.7402]
[1757570705275,0.5043,4411.9,4411.8,0.7402]
[1757570705963,0.7051,4411.9,4411.8,0.7402]
[1757570707068,0.3072,4412.4,4411.8,0.4177]
[1757570707266,0.3979,4412.4,4412.3,0.7402]
[1757570707877,0.7051,4412.4,4412.3,0.4177]
[1757570710984,0.7051,4412.4,4412.3,0.7402]
[1757570711280,0.98411457,4412.9,4412.4,0.3225]
[1757570711281,0.3072,4412.9,4412.4,0.3225]
[1757570711487,0.5043,4412.9,4412.8,0.7402]
[1757570712883,0.7051,4412.9,4412.8,0.7402]
[1757570713483,0.3072,4413.4,4412.8,0.4177]
[1757570713785,0.3072,4413.4,4413.3,0.7402]
[1757570713786,0.7051,4413.4,4413.3,0.7402]
[1757570714383,0.00339728,4413.5,4413.3,0.7402]
[1757570714585,0.50769728,4413.5,4413.4,0.7402]
[1757570716096,0.70849728,4413.5,4413.4,0.7402]
[1757570716281,0.82649728,4413.5,4413.4,0.7402]
[1757570716980,0.50769728,4413.5,4413.4,0.7402]
[1757570718181,0.50769728,4413.5,4413.4,1.72431457]
[1757570721991,0.31059728,4413.5,4413.4,1.72431457]
[1757570722690,0.50769728,4413.5,4413.4,1.72431457]
[1757570725381,0.50769728,4413.5,4413.4,0.7402]
[1757570725594,0.1971,4413.2,4413.1,0.3225]
[1757570725788,0.3072,4413.4,4412.7,0.00339728]
[1757570725789,0.3979,4412.8,4412.7,0.00339728]
[1757570726096,0.7051,4412.8,4412.7,0.00339728]
[1757570733796,1.68921457,4412.8,4411.7,1.30371457]
[1757570733999,1.68921457,4412.8,4411.7,1.50461457]
[1757570734000,0.715,4411.8,4411.7,1.50461457]
[1757570734292,0.715,4411.8,4411.7,1.70191457]
[1757570735500,0.5155,4411.8,4411.7,1.70191457]
[1757570738308,0.5155,4411.8,4411.7,0.7178]
[1757570745310,0.715,4411.8,4411.7,0.7178]
[1757570750010,0.715,4411.8,4411.5,1.16553544]
[1757570750308,0.5155,4411.7,4411.6,0.7178]
[1757570754901,0.715,4411.7,4411.6,0.6262]
[1757570755102,0.715,4411.7,4411.6,0.4289]
[1757570755612,0.715,4411.7,4411.6,0.7485]
[1757570755810,0.715,4411.7,4411.6,0.9458]
[1757570756911,0.715,4411.7,4411.6,0.7178]
[1757570757108,0.715,4411.7,4411.6,0.9458]
[1757570760409,0.715,4411.7,4411.6,2.75001587]
[1757570760615,0.3071,4411.6,4411.5,2.26021587]
[1757570760913,0.7243,4411.6,4411.5,0.228]
[1757570761112,0.7243,4411.6,4411.5,0.4379]
[1757570761514,0.7243,4411.6,4411.5,0.9423]
[1757570763511,0.7243,4411.6,4411.5,0.4098]
[1757570763721,0.7243,4411.4,4411.3,2.03221587]